[Event "MCR rapid mládeže 2023 U16"]
[Site "Harachov, Czech Republic"]
[Date "2023.09.09"]
[Round "1.1"]
[White "Soucek, Andrej"]
[Black "Roubal, Matyas"]
[Result "0-1"]
[TimeControl "20min+5s/move"]
[WhiteElo "1589"]
[BlackElo "1911"]

1. d4 {[%clk 00:20:05]} {[%emt 00:00:03]} Nf6 {[%clk 00:20:09]} 2. Bf4 {[%clk
00:20:08]} {[%emt 00:00:04]} g6 {[%clk 00:20:06]} {[%emt 00:00:08]} 3. Nc3
{[%clk 00:20:11]} {[%emt 00:00:02]} d5 {[%clk 00:19:57]} {[%emt 00:00:14]} 4.
e3 {[%clk 00:19:56]} {[%emt 00:00:20]} Bg7 {[%clk 00:19:47]} {[%emt 00:00:15]}
5. Nf3 {[%clk 00:19:57]} {[%emt 00:00:04]} O-O {[%clk 00:19:46]} {[%emt
00:00:06]} 6. Be2 {[%clk 00:19:59]} {[%emt 00:00:03]} Nh5 {[%clk 00:16:36]}
{[%emt 00:03:15]} 7. Be5 {[%clk 00:19:47]} {[%emt 00:00:17]} f6 {[%clk
00:16:29]} {[%emt 00:00:11]} 8. Bg3 {[%clk 00:18:53]} {[%emt 00:00:59]} c6
{[%clk 00:15:33]} {[%emt 00:01:02]} 9. Bxb8 {[%clk 00:16:59]} {[%emt 00:01:59]}
Rxb8 {[%clk 00:15:36]} {[%emt 00:00:01]} 10. Nh4 {[%clk 00:16:31]} {[%emt
00:00:33]} g5 {[%clk 00:15:05]} {[%emt 00:00:37]} 11. Bxh5 {[%clk 00:15:49]}
{[%emt 00:00:47]} gxh4 {[%clk 00:15:08]} {[%emt 00:00:02]} 12. g3 {[%clk
00:15:43]} {[%emt 00:00:11]} e5 {[%clk 00:14:43]} {[%emt 00:00:30]} 13. gxh4
{[%clk 00:10:53]} {[%emt 00:04:56]} f5 {[%clk 00:14:11]} {[%emt 00:00:37]} 14.
dxe5 {[%clk 00:08:35]} {[%emt 00:02:22]} Bxe5 {[%clk 00:14:05]} {[%emt
00:00:12]} 15. Be2 {[%clk 00:07:18]} {[%emt 00:01:22]} Qxh4 {[%clk 00:13:30]}
{[%emt 00:00:40]} 16. Qd2 {[%clk 00:05:49]} {[%emt 00:01:34]} f4 {[%clk
00:12:35]} {[%emt 00:01:00]} 17. O-O-O {[%clk 00:05:15]} {[%emt 00:00:39]} Kh8
{[%clk 00:11:38]} {[%emt 00:01:02]} 18. Rdf1 {[%clk 00:04:37]} {[%emt
00:00:43]} Bh3 {[%clk 00:11:28]} {[%emt 00:00:14]} 19. Re1 {[%clk 00:03:18]}
{[%emt 00:01:24]} Qxf2 {[%clk 00:10:47]} {[%emt 00:00:47]} 20. Nd1 {[%clk
00:03:20]} {[%emt 00:00:03]} fxe3 {[%clk 00:07:34]} {[%emt 00:03:18]} 21. Nxe3
{[%clk 00:02:10]} {[%emt 00:01:14]} Qf6 {[%clk 00:06:20]} {[%emt 00:01:19]} 22.
Kb1 {[%clk 00:01:13]} {[%emt 00:01:02]} Bxb2 {[%clk 00:05:12]} {[%emt
00:01:13]} 23. Ng4 {[%clk 00:01:16]} {[%emt 00:00:02]} Bxg4 {[%clk 00:05:07]}
{[%emt 00:00:10]} 24. Ref1 {[%clk 00:00:55]} {[%emt 00:00:27]} Bf5 {[%clk
00:03:54]} {[%emt 00:01:18]} 25. Bd3 {[%clk 00:00:48]} {[%emt 00:00:12]} Ba3
{[%clk 00:02:49]} {[%emt 00:01:10]} 26. c3 {[%clk 00:00:37]} {[%emt 00:00:16]}
Bxd3+ {[%clk 00:02:30]} {[%emt 00:00:24]} 27. Qxd3 {[%clk 00:00:41]} Qg6 {[%clk
00:02:33]} {[%emt 00:00:03]} 0-1

[Event "MCR rapid mládeže 2023 U16"]
[Site "Harachov, Czech Republic"]
[Date "2023.09.09"]
[Round "1.2"]
[White "Svadlenka, Dominik"]
[Black "Hobza, Richard"]
[Result "1-0"]
[TimeControl "20min+5s/move"]
[WhiteElo "1588"]
[BlackElo "1399"]

1. d4 {[%clk 00:20:08]} d5 {[%clk 00:20:09]} {[%emt 00:00:02]} 2. c4 {[%clk
00:20:11]} {[%emt 00:00:01]} c6 {[%clk 00:20:13]} {[%emt 00:00:02]} 3. Nf3
{[%clk 00:20:14]} {[%emt 00:00:02]} Nf6 {[%clk 00:20:13]} {[%emt 00:00:04]} 4.
Nc3 {[%clk 00:20:18]} {[%emt 00:00:02]} e6 {[%clk 00:20:14]} {[%emt 00:00:03]}
5. Bg5 {[%clk 00:20:22]} {[%emt 00:00:02]} dxc4 {[%clk 00:20:06]} {[%emt
00:00:13]} 6. a4 {[%clk 00:20:05]} {[%emt 00:00:22]} Be7 {[%clk 00:19:13]}
{[%emt 00:00:58]} 7. e4 {[%clk 00:19:29]} {[%emt 00:00:41]} h6 {[%clk
00:18:02]} {[%emt 00:01:16]} 8. Bxf6 {[%clk 00:18:21]} {[%emt 00:01:13]} Bxf6
{[%clk 00:18:02]} {[%emt 00:00:04]} 9. Bxc4 {[%clk 00:18:24]} {[%emt 00:00:02]}
O-O {[%clk 00:17:45]} {[%emt 00:00:22]} 10. O-O {[%clk 00:18:27]} {[%emt
00:00:02]} b6 {[%clk 00:17:00]} {[%emt 00:00:49]} 11. b4 {[%clk 00:17:25]}
{[%emt 00:01:07]} c5 {[%clk 00:15:45]} {[%emt 00:01:21]} 12. bxc5 {[%clk
00:16:38]} {[%emt 00:00:51]} bxc5 {[%clk 00:15:47]} {[%emt 00:00:03]} 13. e5
{[%clk 00:15:48]} {[%emt 00:00:55]} cxd4 {[%clk 00:13:46]} {[%emt 00:02:06]} 14.
exf6 {[%clk 00:14:31]} {[%emt 00:01:22]} dxc3 {[%clk 00:13:43]} {[%emt
00:00:07]} 15. fxg7 {[%clk 00:14:33]} {[%emt 00:00:04]} Kxg7 {[%clk 00:13:16]}
{[%emt 00:00:31]} 16. Qc2 {[%clk 00:14:07]} {[%emt 00:00:32]} Qf6 {[%clk
00:12:56]} {[%emt 00:00:25]} 17. Qe4 {[%clk 00:13:58]} {[%emt 00:00:14]} Ba6
{[%clk 00:11:38]} {[%emt 00:01:23]} 18. Qxa8 {[%clk 00:13:25]} {[%emt
00:00:38]} Bxc4 {[%clk 00:11:38]} {[%emt 00:00:04]} 19. Rfe1 {[%clk 00:12:49]}
{[%emt 00:00:40]} Bd5 {[%clk 00:10:41]} {[%emt 00:01:03]} 20. Qxa7 {[%clk
00:12:51]} {[%emt 00:00:03]} Bxf3 {[%clk 00:10:38]} {[%emt 00:00:08]} 21. gxf3
{[%clk 00:12:54]} {[%emt 00:00:03]} Qxf3 {[%clk 00:08:17]} {[%emt 00:02:25]} 22.
Re3 {[%clk 00:12:15]} {[%emt 00:00:44]} Qf6 {[%clk 00:08:06]} {[%emt 00:00:14]}
23. Rg3+ {[%clk 00:11:52]} {[%emt 00:00:30]} Kh7 {[%clk 00:07:59]} {[%emt
00:00:12]} 24. Qe3 {[%clk 00:11:32]} {[%emt 00:00:25]} c2 {[%clk 00:06:59]}
{[%emt 00:01:05]} 25. Qd3+ {[%clk 00:11:20]} {[%emt 00:00:17]} Kh8 {[%clk
00:06:33]} {[%emt 00:00:31]} 26. Qc3 {[%clk 00:11:23]} {[%emt 00:00:02]} Qxc3
{[%clk 00:05:41]} {[%emt 00:00:57]} 27. Rxc3 {[%clk 00:11:27]} {[%emt
00:00:02]} Na6 {[%clk 00:05:39]} {[%emt 00:00:06]} 28. Rxc2 {[%clk 00:11:30]}
{[%emt 00:00:02]} Nb4 {[%clk 00:05:26]} {[%emt 00:00:18]} 29. Rc4 {[%clk
00:11:25]} {[%emt 00:00:10]} Nd5 {[%clk 00:05:17]} {[%emt 00:00:14]} 30. a5
{[%clk 00:11:22]} {[%emt 00:00:08]} Kg7 {[%clk 00:04:45]} {[%emt 00:00:37]} 31.
a6 {[%clk 00:11:17]} {[%emt 00:00:09]} Kf6 {[%clk 00:04:41]} {[%emt 00:00:09]}
32. a7 {[%clk 00:10:31]} {[%emt 00:00:52]} Ra8 {[%clk 00:04:26]} {[%emt
00:00:19]} 33. Rc5 {[%clk 00:10:15]} {[%emt 00:00:20]} Ke7 {[%clk 00:04:15]}
{[%emt 00:00:16]} 34. Rb5 {[%clk 00:10:16]} {[%emt 00:00:05]} Kd7 {[%clk
00:03:35]} {[%emt 00:00:45]} 35. Rb8 {[%clk 00:10:17]} {[%emt 00:00:04]} Nc7
{[%clk 00:03:37]} {[%emt 00:00:03]} 36. Rxa8 {[%clk 00:10:20]} {[%emt
00:00:02]} Nxa8 {[%clk 00:03:41]} {[%emt 00:00:01]} 37. Kg2 {[%clk 00:10:23]}
{[%emt 00:00:01]} Kc7 {[%clk 00:03:39]} {[%emt 00:00:07]} 38. Rb1 {[%clk
00:10:26]} {[%emt 00:00:03]} 1-0

[Event "MCR rapid mládeže 2023 U16"]
[Site "Harachov, Czech Republic"]
[Date "2023.09.09"]
[Round "1.3"]
[White "Stary, Vojtech"]
[Black "Popov, Roman"]
[Result "0-1"]
[TimeControl "20min+5s/move"]
[WhiteElo "1582"]
[BlackElo "1751"]

1. d4 {[%clk 00:20:07]} {[%emt 00:00:02]} d5 {[%clk 00:20:00]} {[%emt
00:00:10]} 2. Bf4 {[%clk 00:20:09]} {[%emt 00:00:03]} Nf6 {[%clk 00:20:01]}
{[%emt 00:00:04]} 3. e3 {[%clk 00:20:10]} {[%emt 00:00:04]} c5 {[%clk
00:20:01]} {[%emt 00:00:05]} 4. c3 {[%clk 00:20:11]} {[%emt 00:00:04]} Nc6
{[%clk 00:20:01]} {[%emt 00:00:05]} 5. Nd2 {[%clk 00:20:10]} {[%emt 00:00:06]}
e6 {[%clk 00:19:04]} {[%emt 00:01:02]} 6. Ngf3 {[%clk 00:19:50]} {[%emt
00:00:25]} Nh5 {[%clk 00:17:33]} {[%emt 00:01:36]} 7. Bg3 {[%clk 00:19:07]}
{[%emt 00:00:47]} Nxg3 {[%clk 00:17:14]} {[%emt 00:00:24]} 8. hxg3 {[%clk
00:19:02]} {[%emt 00:00:10]} Bd6 {[%clk 00:16:42]} {[%emt 00:00:37]} 9. Bd3
{[%clk 00:18:52]} {[%emt 00:00:15]} h6 {[%clk 00:15:09]} {[%emt 00:01:38]} 10.
O-O {[%clk 00:15:41]} {[%emt 00:03:15]} O-O {[%clk 00:14:50]} {[%emt 00:00:25]}
11. Rc1 {[%clk 00:14:46]} {[%emt 00:01:00]} e5 {[%clk 00:13:55]} {[%emt
00:01:00]} 12. dxe5 {[%clk 00:14:01]} {[%emt 00:00:50]} Nxe5 {[%clk 00:13:51]}
{[%emt 00:00:09]} 13. Nxe5 {[%clk 00:13:57]} {[%emt 00:00:08]} Bxe5 {[%clk
00:13:54]} {[%emt 00:00:02]} 14. Nf3 {[%clk 00:13:31]} {[%emt 00:00:31]} Bg4
{[%clk 00:12:52]} {[%emt 00:01:07]} 15. Bb1 {[%clk 00:12:55]} {[%emt 00:00:41]}
g6 {[%clk 00:10:36]} {[%emt 00:02:20]} 16. Qd3 {[%clk 00:10:47]} {[%emt
00:02:13]} Bf6 {[%clk 00:07:50]} {[%emt 00:02:50]} 17. Rcd1 {[%clk 00:09:49]}
{[%emt 00:01:04]} Be6 {[%clk 00:07:10]} {[%emt 00:00:44]} 18. e4 {[%clk
00:08:50]} {[%emt 00:01:05]} dxe4 {[%clk 00:04:53]} {[%emt 00:02:22]} 19. Qxe4
{[%clk 00:08:49]} {[%emt 00:00:06]} Qc7 {[%clk 00:04:43]} {[%emt 00:00:16]} 20.
Nh4 {[%clk 00:05:39]} {[%emt 00:03:14]} Bxh4 {[%clk 00:03:13]} {[%emt
00:01:35]} 21. Qxh4 {[%clk 00:05:09]} {[%emt 00:00:35]} Kg7 {[%clk 00:02:53]}
{[%emt 00:00:25]} 22. Rfe1 {[%clk 00:04:54]} {[%emt 00:00:20]} Rad8 {[%clk
00:01:53]} {[%emt 00:01:04]} 23. Qf4 {[%clk 00:02:06]} {[%emt 00:02:53]} Qxf4
{[%clk 00:00:28]} {[%emt 00:01:30]} 24. gxf4 {[%clk 00:02:09]} {[%emt
00:00:02]} b6 {[%clk 00:00:20]} {[%emt 00:00:13]} 25. f3 {[%clk 00:01:48]}
{[%emt 00:00:26]} Bd5 {[%clk 00:00:09]} {[%emt 00:00:16]} 26. Kf2 {[%clk
00:01:39]} {[%emt 00:00:13]} Bc6 {[%clk 00:00:10]} {[%emt 00:00:05]} 27. Be4
{[%clk 00:01:24]} {[%emt 00:00:20]} Bb5 {[%clk 00:00:08]} {[%emt 00:00:07]} 28.
Bc2 {[%clk 00:00:25]} {[%emt 00:01:04]} Rxd1 {[%clk 00:00:06]} {[%emt
00:00:07]} 29. Rxd1 {[%clk 00:00:28]} {[%emt 00:00:02]} Re8 {[%clk 00:00:08]}
{[%emt 00:00:03]} 30. Bd3 {[%clk 00:00:11]} {[%emt 00:00:22]} Ba4 {[%clk
00:00:10]} {[%emt 00:00:04]} 31. b3 {[%clk 00:00:10]} {[%emt 00:00:06]} Bc6
{[%clk 00:00:13]} {[%emt 00:00:02]} 32. b4 {[%clk 00:00:10]} {[%emt 00:00:06]}
cxb4 {[%clk 00:00:14]} {[%emt 00:00:04]} 33. cxb4 {[%clk 00:00:14]} Rd8 {[%clk
00:00:16]} {[%emt 00:00:03]} 34. Bc2 {[%clk 00:00:12]} {[%emt 00:00:06]} Rc8
{[%clk 00:00:15]} {[%emt 00:00:06]} 35. Bb3 {[%clk 00:00:12]} {[%emt 00:00:05]}
Kf6 {[%clk 00:00:13]} {[%emt 00:00:07]} 36. Rd2 {[%clk 00:00:10]} {[%emt
00:00:08]} Ke7 {[%clk 00:00:13]} {[%emt 00:00:05]} 37. Ke3 {[%clk 00:00:10]}
{[%emt 00:00:04]} Bb5 {[%clk 00:00:11]} {[%emt 00:00:08]} 38. a4 {[%clk
00:00:11]} {[%emt 00:00:04]} Be8 {[%clk 00:00:10]} {[%emt 00:00:06]} 39. Rc2
{[%clk 00:00:15]} {[%emt 00:00:02]} Rxc2 {[%clk 00:00:09]} {[%emt 00:00:07]} 40.
Bxc2 {[%clk 00:00:19]} Kd6 {[%clk 00:00:12]} {[%emt 00:00:01]} 41. Kd4 {[%clk
00:00:23]} {[%emt 00:00:02]} f6 {[%clk 00:00:14]} {[%emt 00:00:03]} 42. g3
{[%clk 00:00:19]} {[%emt 00:00:09]} Bf7 {[%clk 00:00:09]} {[%emt 00:00:10]} 43.
Bd3 {[%clk 00:00:11]} {[%emt 00:00:13]} g5 {[%clk 00:00:12]} {[%emt 00:00:02]}
44. fxg5 {[%clk 00:00:13]} {[%emt 00:00:03]} fxg5 {[%clk 00:00:14]} {[%emt
00:00:03]} 45. Bc2 {[%clk 00:00:14]} {[%emt 00:00:04]} h5 {[%clk 00:00:14]}
{[%emt 00:00:04]} 46. Bd1 {[%clk 00:00:09]} {[%emt 00:00:11]} h4 {[%clk
00:00:11]} {[%emt 00:00:08]} 47. gxh4 {[%clk 00:00:10]} {[%emt 00:00:04]} gxh4
{[%clk 00:00:15]} {[%emt 00:00:01]} 48. f4 {[%clk 00:00:12]} {[%emt 00:00:03]}
h3 {[%clk 00:00:17]} {[%emt 00:00:04]} 49. Bf3 {[%clk 00:00:14]} {[%emt
00:00:03]} a5 {[%clk 00:00:17]} {[%emt 00:00:05]} 50. bxa5 {[%clk 00:00:16]}
{[%emt 00:00:03]} bxa5 {[%clk 00:00:21]} {[%emt 00:00:01]} 51. f5 {[%clk
00:00:15]} {[%emt 00:00:06]} Be8 {[%clk 00:00:23]} {[%emt 00:00:02]} 52. Bd5
{[%clk 00:00:15]} {[%emt 00:00:05]} Bxa4 {[%clk 00:00:22]} {[%emt 00:00:07]} 53.
f6 {[%clk 00:00:18]} {[%emt 00:00:01]} Bd7 {[%clk 00:00:21]} {[%emt 00:00:05]}
54. Bf3 {[%clk 00:00:08]} {[%emt 00:00:16]} a4 {[%clk 00:00:24]} {[%emt
00:00:02]} 55. Kc4 {[%clk 00:00:10]} {[%emt 00:00:03]} Be6+ {[%clk 00:00:17]}
{[%emt 00:00:12]} 56. Kb4 {[%clk 00:00:14]} {[%emt 00:00:02]} Bb3 {[%clk
00:00:18]} {[%emt 00:00:04]} 57. Ka3 {[%clk 00:00:13]} {[%emt 00:00:06]} Bc2
{[%clk 00:00:16]} {[%emt 00:00:06]} 58. Kb4 {[%clk 00:00:10]} {[%emt 00:00:09]}
Bb3 {[%clk 00:00:18]} {[%emt 00:00:02]} 59. Ka3 {[%clk 00:00:14]} {[%emt
00:00:01]} Ke5 {[%clk 00:00:15]} {[%emt 00:00:09]} 60. f7 {[%clk 00:00:15]}
{[%emt 00:00:04]} Bxf7 {[%clk 00:00:18]} {[%emt 00:00:02]} 61. Kxa4 {[%clk
00:00:18]} {[%emt 00:00:02]} Bd5 {[%clk 00:00:21]} {[%emt 00:00:02]} 62. Bg4
{[%clk 00:00:20]} {[%emt 00:00:03]} h2 {[%clk 00:00:24]} {[%emt 00:00:01]} 0-1

[Event "MCR rapid mládeže 2023 U16"]
[Site "Harachov, Czech Republic"]
[Date "2023.09.09"]
[Round "1.4"]
[White "Babula, Matej"]
[Black "Slechta, Adam"]
[Result "1-0"]
[TimeControl "20min+5s/move"]
[WhiteElo "1865"]
[BlackElo "1509"]

1. e4 {[%clk 00:20:08]} d6 {[%clk 00:20:02]} {[%emt 00:00:09]} 2. d4 {[%clk
00:20:08]} {[%emt 00:00:04]} Nf6 {[%clk 00:19:58]} {[%emt 00:00:09]} 3. Nc3
{[%clk 00:20:07]} {[%emt 00:00:06]} g6 {[%clk 00:19:46]} {[%emt 00:00:17]} 4.
Be3 {[%clk 00:20:00]} {[%emt 00:00:12]} Bg7 {[%clk 00:19:34]} {[%emt 00:00:17]}
5. f3 {[%clk 00:19:30]} {[%emt 00:00:35]} O-O {[%clk 00:19:07]} {[%emt
00:00:32]} 6. Qd2 {[%clk 00:19:27]} {[%emt 00:00:07]} Nbd7 {[%clk 00:18:30]}
{[%emt 00:00:43]} 7. O-O-O {[%clk 00:18:58]} {[%emt 00:00:34]} b6 {[%clk
00:17:12]} {[%emt 00:01:24]} 8. Bh6 {[%clk 00:18:12]} {[%emt 00:00:50]} c5
{[%clk 00:16:40]} {[%emt 00:00:38]} 9. Nge2 {[%clk 00:17:33]} {[%emt 00:00:43]}
a6 {[%clk 00:14:38]} {[%emt 00:02:08]} 10. h4 {[%clk 00:14:22]} {[%emt
00:03:15]} b5 {[%clk 00:13:29]} {[%emt 00:01:14]} 11. Bxg7 {[%clk 00:11:24]}
{[%emt 00:03:03]} Kxg7 {[%clk 00:13:25]} {[%emt 00:00:08]} 12. e5 {[%clk
00:10:33]} {[%emt 00:00:56]} Ne8 {[%clk 00:10:17]} {[%emt 00:03:13]} 13. h5
{[%clk 00:09:53]} {[%emt 00:00:45]} Rh8 {[%clk 00:08:08]} {[%emt 00:02:14]} 14.
e6 {[%clk 00:05:25]} {[%emt 00:04:33]} Nf8 {[%clk 00:03:10]} {[%emt 00:05:03]}
15. exf7 {[%clk 00:03:37]} {[%emt 00:01:53]} Nf6 {[%clk 00:01:04]} {[%emt
00:02:12]} 16. dxc5 {[%clk 00:02:34]} {[%emt 00:01:09]} 1-0

[Event "MCR rapid mládeže 2023 U16"]
[Site "Harachov, Czech Republic"]
[Date "2023.09.09"]
[Round "1.5"]
[White "Dusanek, Michal"]
[Black "Juhanak, Daniel"]
[Result "0-1"]
[TimeControl "20min+5s/move"]
[WhiteElo "1582"]
[BlackElo "1878"]

1. d4 {[%clk 00:20:06]} {[%emt 00:00:03]} Nf6 {[%clk 00:20:06]} {[%emt
00:00:04]} 2. Nf3 {[%clk 00:20:02]} {[%emt 00:00:09]} d5 {[%clk 00:19:45]}
{[%emt 00:00:26]} 3. Bf4 {[%clk 00:19:49]} {[%emt 00:00:17]} c5 {[%clk
00:19:42]} {[%emt 00:00:08]} 4. c3 {[%clk 00:19:44]} {[%emt 00:00:10]} Nc6
{[%clk 00:19:10]} {[%emt 00:00:38]} 5. e3 {[%clk 00:18:24]} {[%emt 00:01:26]}
g6 {[%clk 00:18:16]} {[%emt 00:00:59]} 6. Nbd2 {[%clk 00:18:19]} {[%emt
00:00:09]} Bg7 {[%clk 00:18:12]} {[%emt 00:00:09]} 7. Bd3 {[%clk 00:17:18]}
{[%emt 00:01:06]} O-O {[%clk 00:18:09]} {[%emt 00:00:08]} 8. O-O {[%clk
00:17:12]} {[%emt 00:00:11]} b6 {[%clk 00:17:09]} {[%emt 00:01:06]} 9. Ne5
{[%clk 00:16:59]} {[%emt 00:00:18]} Bb7 {[%clk 00:16:57]} {[%emt 00:00:17]} 10.
Qa4 {[%clk 00:15:39]} {[%emt 00:01:25]} Qc8 {[%clk 00:14:54]} {[%emt 00:02:08]}
11. Bb5 {[%clk 00:12:47]} {[%emt 00:02:58]} Nb8 {[%clk 00:12:25]} {[%emt
00:02:33]} 12. Qa3 {[%clk 00:09:53]} {[%emt 00:02:59]} Ba6 {[%clk 00:10:53]}
{[%emt 00:01:38]} 13. Bxa6 {[%clk 00:09:06]} {[%emt 00:00:51]} Qxa6 {[%clk
00:09:54]} {[%emt 00:01:03]} 14. Qxa6 {[%clk 00:08:21]} {[%emt 00:00:50]} Nxa6
{[%clk 00:09:57]} {[%emt 00:00:02]} 15. h3 {[%clk 00:06:45]} {[%emt 00:01:41]}
Rac8 {[%clk 00:09:05]} {[%emt 00:00:57]} 16. a4 {[%clk 00:05:45]} {[%emt
00:01:05]} Nb8 {[%clk 00:07:03]} {[%emt 00:02:07]} 17. a5 {[%clk 00:04:25]}
{[%emt 00:01:26]} Ne8 {[%clk 00:01:54]} {[%emt 00:05:13]} 18. axb6 {[%clk
00:02:40]} {[%emt 00:01:49]} axb6 {[%clk 00:01:59]} {[%emt 00:00:01]} 19. Ra8
{[%clk 00:00:54]} {[%emt 00:01:51]} Nd6 {[%clk 00:01:47]} {[%emt 00:00:18]} 20.
Rfa1 {[%clk 00:00:30]} {[%emt 00:00:28]} f6 {[%clk 00:00:52]} {[%emt 00:01:00]}
21. Nd3 {[%clk 00:00:34]} {[%emt 00:00:01]} Nd7 {[%clk 00:00:37]} {[%emt
00:00:20]} 22. Rxc8 {[%clk 00:00:24]} {[%emt 00:00:15]} Rxc8 {[%clk 00:00:30]}
{[%emt 00:00:11]} 23. Ra7 {[%clk 00:00:27]} {[%emt 00:00:03]} Rd8 {[%clk
00:00:24]} {[%emt 00:00:11]} 24. Bxd6 {[%clk 00:00:17]} {[%emt 00:00:15]} exd6
{[%clk 00:00:28]} 25. Nf4 {[%clk 00:00:11]} {[%emt 00:00:10]} f5 {[%clk
00:00:12]} {[%emt 00:00:21]} 26. Nxd5 {[%clk 00:00:13]} {[%emt 00:00:03]} Nf6
{[%emt 00:00:06]} 27. Nxf6+ {[%clk 00:00:13]} {[%emt 00:00:04]} Bxf6 {[%clk
00:00:17]} 28. Rb7 {[%clk 00:00:13]} {[%emt 00:00:05]} h6 {[%clk 00:00:12]}
{[%emt 00:00:10]} 29. Rxb6 {[%clk 00:00:16]} {[%emt 00:00:03]} Kf7 {[%clk
00:00:16]} 30. Nc4 {[%clk 00:00:14]} {[%emt 00:00:07]} Ke7 {[%clk 00:00:17]}
{[%emt 00:00:03]} 31. Rb7+ {[%clk 00:00:18]} {[%emt 00:00:02]} Ke6 {[%clk
00:00:20]} {[%emt 00:00:02]} 32. Rh7 {[%clk 00:00:18]} {[%emt 00:00:05]} h5
{[%clk 00:00:23]} {[%emt 00:00:02]} 33. Rc7 {[%clk 00:00:14]} {[%emt 00:00:08]}
Rb8 {[%clk 00:00:14]} {[%emt 00:00:15]} 34. dxc5 {[%emt 00:00:11]} dxc5 {[%clk
00:00:14]} {[%emt 00:00:04]} 35. Rxc5 {[%clk 00:00:12]} {[%emt 00:00:03]} Ra8
{[%clk 00:00:15]} {[%emt 00:00:04]} 36. Rc6+ {[%clk 00:00:14]} {[%emt
00:00:02]} Ke7 {[%clk 00:00:19]} 37. Rc7+ {[%clk 00:00:15]} {[%emt 00:00:05]}
Ke6 {[%clk 00:00:23]} 38. Rc6+ {[%clk 00:00:10]} {[%emt 00:00:10]} Ke7 {[%clk
00:00:27]} 39. Nb6 {[%clk 00:00:11]} {[%emt 00:00:05]} Ra5 {[%clk 00:00:17]}
{[%emt 00:00:15]} 40. Nc8+ {[%clk 00:00:09]} {[%emt 00:00:07]} Kf7 {[%clk
00:00:18]} {[%emt 00:00:03]} 41. Nd6+ {[%clk 00:00:11]} {[%emt 00:00:04]} Ke7
{[%clk 00:00:17]} {[%emt 00:00:06]} 42. Nc4 {[%clk 00:00:11]} {[%emt 00:00:05]}
Ra7 {[%clk 00:00:11]} {[%emt 00:00:11]} 43. Nb6 {[%clk 00:00:11]} {[%emt
00:00:05]} Ra2 {[%clk 00:00:12]} {[%emt 00:00:03]} 44. b4 {[%clk 00:00:12]}
{[%emt 00:00:04]} Be5 {[%clk 00:00:12]} {[%emt 00:00:05]} 45. g3 {[%clk
00:00:10]} {[%emt 00:00:07]} Kf7 {[%clk 00:00:13]} {[%emt 00:00:03]} 46. c4
{[%clk 00:00:13]} {[%emt 00:00:02]} Bc3 {[%clk 00:00:11]} {[%emt 00:00:07]} 47.
Nd5 {[%clk 00:00:16]} {[%emt 00:00:02]} Be1 {[%clk 00:00:13]} {[%emt 00:00:03]}
48. Rc7+ {[%clk 00:00:15]} {[%emt 00:00:05]} Kf8 {[%clk 00:00:09]} {[%emt
00:00:10]} 49. b5 {[%clk 00:00:14]} {[%emt 00:00:07]} Bxf2+ {[%clk 00:00:13]}
{[%emt 00:00:01]} 50. Kh1 {[%clk 00:00:12]} {[%emt 00:00:57]} Bxg3 {[%clk
00:01:05]} {[%emt 00:00:11]} 51. Rc8+ {[%clk 00:00:16]} Kf7 {[%clk 00:01:04]}
{[%emt 00:00:05]} 52. b6 {[%clk 00:00:21]} {[%emt 00:00:02]} h4 {[%clk
00:00:39]} {[%emt 00:00:30]} 53. b7 {[%clk 00:00:18]} {[%emt 00:00:09]} Rb2
{[%clk 00:00:28]} {[%emt 00:00:15]} 54. Rh8 {[%clk 00:00:14]} {[%emt 00:00:09]}
Kg7 {[%clk 00:00:24]} {[%emt 00:00:09]} 55. Rd8 {[%clk 00:00:07]} {[%emt
00:00:12]} Rxb7 {[%clk 00:00:19]} {[%emt 00:00:10]} 56. c5 {[%emt 00:00:04]}
Rb1+ {[%clk 00:00:09]} {[%emt 00:00:15]} 57. Kg2 {[%clk 00:00:12]} {[%emt
00:00:01]} Rc1 {[%clk 00:00:12]} {[%emt 00:00:01]} 58. Rc8 {[%clk 00:00:11]}
{[%emt 00:00:06]} Rc2+ {[%clk 00:00:15]} {[%emt 00:00:03]} 59. Kf3 {[%clk
00:00:14]} {[%emt 00:00:02]} Rf2# {[%clk 00:00:18]} {[%emt 00:00:01]} 0-1